fUSD/lending_fUSD_20260402
["ID","MTS","AMOUNT","RATE_DAILY","PERIOD"]
[419318841,1775158243213,-500.0,0.00015999,2]
[419318843,1775158243223,-500.0,0.00015999,2]
[419318845,1775158243233,-500.0,0.00015999,2]
[419318846,1775158243243,-500.0,0.00015999,2]
[419318847,1775158243253,-398.43669082,0.00015999,2]
[419318848,1775158243262,-500.0,0.00015999,2]
[419318849,1775158243272,-500.0,0.00015999,2]
[419318850,1775158243282,-286.05232566,0.00015999,2]
[419318851,1775158243291,-325.64720677,0.00015999,2]
[419318853,1775158243301,-500.0,0.00015999,2]
[419318854,1775158243311,-500.0,0.00015999,2]
[419318855,1775158243320,-500.0,0.00015999,2]
[419318856,1775158243330,-596.88965661,0.00015999,2]
[419318857,1775158243339,-297.01740365,0.00015999,2]
[419318858,1775158243349,-500.0,0.00015999,2]
[419318859,1775158243359,-574.97330146,0.00015999,2]
[419318860,1775158243369,-500.0,0.00015999,2]
[419318861,1775158243379,-500.0,0.00015999,2]
[419318862,1775158243389,-500.0,0.00015999,2]
[419318863,1775158243398,-421.11305267,0.00015999,2]
[419318864,1775158243408,-240.20283738,0.00016,2]
[419318865,1775158243418,-150.0,0.00016,2]
[419318866,1775158243427,-150.0,0.00016,2]
[419318867,1775158243437,-245.82237456,0.00016,2]
[419318868,1775158243447,-150.0,0.00016,2]
[419318869,1775158243457,-150.0,0.00016,2]
[419318870,1775158243466,-262.68,0.00016,2]
[419318871,1775158243476,-150.0,0.00016,2]
[419318872,1775158243486,-2427117.7000558,0.00016,2]
[419318873,1775158243495,-3307.32226833,0.00016,2]
[419318874,1775158243505,-680341.4357416,0.00016,2]
[419318875,1775158243514,-169.0,0.00016,3]
[419318876,1775158243524,-159.0,0.00016,3]
[419318877,1775158243534,-165.0,0.00016,3]
[419318878,1775158243544,-154.78244339,0.00016001,2]
[419318879,1775158243554,-176.92215124,0.00016001,2]
[419318880,1775158243563,-150.0,0.00016001,2]
[419318881,1775158243573,-150.0,0.00016001,2]
[419318882,1775158243583,-150.0,0.00016001,2]
[419318883,1775158243593,-150.0,0.00016001,2]
[419318884,1775158243602,-150.0,0.00016001,2]
[419318885,1775158243612,-150.0,0.00016001,2]
[419318886,1775158243621,-1613.79414817,0.00016001,2]
[419318887,1775158243631,-160.0,0.00016015,2]
[419318888,1775158243641,-200.0,0.00016058,2]
[419318889,1775158243650,-156.94,0.00016058,2]
[419318890,1775158243660,-273.54265412,0.0001632,2]
[419318891,1775158243669,-299.62819709,0.0001632,2]
[419318892,1775158243678,-3249.95,0.00016352,2]
[419318893,1775158243688,-177.6623,0.000164,7]
[419318894,1775158243697,-441.22,0.00016432,2]
[419318895,1775158243707,-1263.0,0.00016433,2]
[419318896,1775158243717,-1217.0,0.00016433,2]
[419318897,1775158243727,-925.0,0.00016433,2]
[419318898,1775158243737,-2469.0,0.00016433,2]
[419318899,1775158243746,-1046.0,0.00016433,2]
[419318900,1775158243756,-6016.0,0.00016433,2]
[419318901,1775158243765,-1720.4,0.00016438,2]
[419318902,1775158243775,-152.51,0.00016438,2]
[419318903,1775158243784,-511.488,0.00016438,2]
[419318904,1775158243794,-250.0,0.00016443,2]
[419318905,1775158243804,-150.0,0.00016443,2]
[419318906,1775158243813,-151.225,0.00016443,2]
[419318907,1775158243823,-502.0,0.00016455,4]
[419318908,1775158243833,-2000.0,0.00016478,2]
[419318909,1775158243843,-1000.0,0.00016521,2]
[419318910,1775158243853,-1000.0,0.00016521,2]
[419318911,1775158243863,-1000.0,0.00016521,2]
[419318912,1775158243873,-1000.0,0.00016521,2]
[419318913,1775158243883,-1000.0,0.00016521,2]
[419318914,1775158243894,-1000.0,0.00016521,2]
[419318915,1775158243903,-433.0,0.00016617,2]
[419318916,1775158243913,-164.8,0.00016712,2]
[419318917,1775158243922,-3382.0243901,0.000168,2]
[419318918,1775158243932,-7633.66,0.00016922,2]
[419318919,1775158243942,-3147.66,0.00016922,2]
[419318920,1775158243951,-150.99,0.00016922,2]
[419318921,1775158243961,-299.99,0.00016922,4]
[419318922,1775158243970,-2714.63,0.00016922,2]
[419318923,1775158243980,-156.94,0.0001695,2]
[419318924,1775158243989,-1000.0,0.00017068,2]
[419318925,1775158243998,-168.0,0.00017134,2]
[419318926,1775158244008,-50449.83236664,0.00017166,2]
[419318927,1775158244018,-2747.0,0.00017233,5]
[419318928,1775158244027,-2881.0,0.00017233,5]
[419318929,1775158244037,-179.95,0.00017254,2]
[419318930,1775158244046,-1115.0,0.00017288,2]
[419318931,1775158244055,-1475.971,0.00017468,2]
[419318932,1775158244065,-164.145,0.00017468,2]
[419318933,1775158244074,-210.426,0.000175,12]
[419318934,1775158244083,-168.0,0.00017516,2]
[419318935,1775158244092,-2300.0,0.00017534,7]
[419318936,1775158244102,-3000.0,0.00017534,7]
[419318937,1775158244111,-306.0,0.000177,2]
[419318938,1775158244121,-313.0,0.000177,2]
[419318939,1775158244131,-3382.0243901,0.000178,2]
[419318940,1775158244141,-156.94,0.00017843,2]
[419318941,1775158244151,-230.0,0.0001793,2]
[419318942,1775158244160,-160.0,0.00017943,7]
[419318943,1775158244170,-329.78924,0.00017943,7]
[419318944,1775158244179,-499.578481,0.00017943,7]
[419318945,1775158244189,-500.0,0.00017986,2]
[419318946,1775158244199,-500.0,0.00017986,2]
[419318947,1775158244209,-500.0,0.00017986,2]
[419318948,1775158244218,-500.0,0.00017986,2]
[419318949,1775158244228,-352.89483159,0.00017986,2]
[419318950,1775158244237,-500.0,0.00017986,2]
[419318951,1775158244247,-500.0,0.00017986,2]
[419318952,1775158244257,-500.0,0.00017986,2]
[419318953,1775158244266,-429.60065942,0.00017986,2]
[419318954,1775158244276,-500.0,0.00017986,2]
[419318955,1775158244286,-500.0,0.00017986,2]
[419318956,1775158244296,-500.0,0.00017986,2]
[419318957,1775158244305,-151.0,0.00017986,2]
[419318958,1775158244315,-500.0,0.00017986,2]
[419318959,1775158244324,-500.0,0.00017986,2]
[419318960,1775158244333,-500.0,0.00017986,2]
[419318961,1775158244343,-500.0,0.00017986,2]
[419318962,1775158244352,-500.0,0.00017986,2]
[419318963,1775158244362,-500.0,0.00017986,2]
[419318964,1775158244371,-500.0,0.00017986,2]
[419318965,1775158244380,-500.0,0.00017986,2]
[419318966,1775158244389,-250.0,0.00017986,2]
[419318967,1775158244399,-250.0,0.00017986,2]
[419318968,1775158244409,-250.0,0.00017986,2]
[419318970,1775158244419,-250.0,0.00017986,2]
[419318971,1775158244428,-250.0,0.00017986,2]
[419318973,1775158244437,-250.0,0.00017986,2]
[419318975,1775158244446,-250.0,0.00017986,2]
[419318977,1775158244456,-250.0,0.00017986,2]
[419318979,1775158244465,-250.0,0.00017986,2]
[419318981,1775158244474,-250.0,0.00017986,2]
[419318983,1775158244483,-250.0,0.00017986,2]
[419318985,1775158244493,-170.0,0.00017986,2]
[419318987,1775158244502,-170.0,0.00017986,2]
[419318989,1775158244513,-282.73071405,0.00017986,2]
[419318991,1775158244523,-200.506913,0.00018,2]
[419318993,1775158244532,-10504.7915469,0.00018012,2]
[419318995,1775158244542,-500.0,0.00018041,2]
[419318997,1775158244552,-151.0,0.00018041,2]
[419318999,1775158244561,-196.182085,0.00018064,7]
[419319001,1775158244570,-160.0,0.00018064,7]
[419319003,1775158244580,-563.069355,0.00018064,7]
[419319005,1775158244589,-966.13871,0.00018064,7]
[419319006,1775158244598,-160.0,0.00018096,7]
[419319008,1775158244608,-161.907132,0.00018096,7]
[419319009,1775158244617,-163.814265,0.00018096,7]
[419319010,1775158244626,-500.0,0.00018096,2]
[419319011,1775158244636,-151.0,0.00018096,2]
[419319012,1775158244645,-500.0,0.00018151,2]
[419319013,1775158244654,-151.0,0.00018151,2]
[419319014,1775158244664,-1115.0,0.00018198,2]
[419319015,1775158244674,-500.0,0.00018206,2]
[419319016,1775158244684,-151.0,0.00018206,2]
[419319017,1775158244695,-502.59758452,0.0001823,2]
[419319018,1775158244704,-500.0,0.00018261,2]
[419319019,1775158244713,-160.27329627,0.00018261,2]
[419319020,1775158244723,-2000.0,0.00018309,2]
[419319021,1775158244732,-500.0,0.00018316,2]
[419319022,1775158244741,-168.0,0.0001836,2]
[419319023,1775158244751,-500.0,0.00018371,2]
[419319024,1775158244760,-1571.0,0.000184,2]
[419319025,1775158244769,-2809.0,0.000184,2]
[419319026,1775158244779,-500.0,0.00018426,2]
[419319027,1775158244788,-50449.83236664,0.00018433,2]
[419319028,1775158244797,-372.89,0.00018457,2]
[419319029,1775158244807,-2343.9358201,0.00018465,2]
[419319030,1775158244818,-500.0,0.00018481,2]
[419319031,1775158244827,-505.86563859,0.00018536,2]
[419319032,1775158244837,-1571.0,0.0001854,2]
[419319033,1775158244848,-2300.0,0.0001863,7]
[419319034,1775158244858,-3000.0,0.0001863,7]
[419319035,1775158244867,-1720.4,0.0001868,2]
[419319036,1775158244877,-249.2319,0.000187,17]
[419319037,1775158244984,-2809.0,0.0001872,2]
[419319038,1775158244997,-156.94,0.00018735,2]
[419319039,1775158245007,-159.0,0.00018788,3]
[419319040,1775158245017,-1097.84000604,0.0001879,2]
[419319041,1775158245028,-3382.0243901,0.000188,2]
[419319042,1775158245038,-449.7126,0.0001884,7]
[419319043,1775158245049,-767.821847,0.00018967,7]
[419319044,1775158245059,-220.782453,0.00019,7]
[419319045,1775158245070,-1571.0,0.0001904,2]
[419319046,1775158245081,-1115.0,0.00019155,2]
[419319047,1775158245090,-162.27,0.00019178,2]
[419319048,1775158245100,-746.12883451,0.00019258,2]
[419319049,1775158245109,-500.0,0.00019279,2]
[419319050,1775158245119,-500.0,0.00019279,2]
[419319051,1775158245128,-500.0,0.00019279,2]
[419319052,1775158245138,-518.78086714,0.00019279,2]
[419319053,1775158245148,-500.0,0.0001935,2]
[419319054,1775158245157,-501.37276755,0.0001935,2]
[419319055,1775158245167,-500.0,0.0001935,2]
[419319056,1775158245176,-289.05679674,0.0001935,2]
[419319057,1775158245186,-500.0,0.0001935,2]
[419319058,1775158245195,-500.0,0.0001935,2]
[419319059,1775158245205,-500.0,0.0001935,2]
[419319060,1775158245214,-500.0,0.0001935,2]
[419319061,1775158245223,-500.0,0.0001935,2]
[419319062,1775158245232,-3494.09,0.00019429,2]
[419319063,1775158245241,-1263.0,0.00019433,2]
[419319064,1775158245250,-1217.0,0.00019433,2]
[419319065,1775158245260,-925.0,0.00019433,2]
[419319066,1775158245270,-2469.0,0.00019433,2]
[419319067,1775158245280,-1046.0,0.00019433,2]
[419319068,1775158245290,-604.525,0.00019433,2]
[419319069,1775158245299,-150.0,0.00019443,2]
[419319070,1775158245309,-168.24,0.00019492,2]
[419319071,1775158245318,-3612.43026657,0.00019524,2]
[419319072,1775158245327,-156.94,0.00019627,2]
[419319073,1775158245336,-2809.0,0.0001968,2]
[419319074,1775158245346,-50449.83236664,0.00019699,2]
[419319075,1775158245355,-2300.0,0.00019726,7]
[419319076,1775158245364,-3000.0,0.00019726,7]
[419319077,1775158245374,-502.0,0.000198,7]
[419319078,1775158245383,-295.1942,0.000198,22]
[419319079,1775158245392,-3382.0243901,0.000198,2]
[419319080,1775158245402,-165.90635,0.000198,2]
[419319081,1775158245412,-165.90635,0.000198,2]
[419319082,1775158245421,-165.90635,0.000198,2]
[419319083,1775158245431,-165.90635,0.000198,2]
[419319084,1775158245440,-24984.01404667,0.0001981,2]
[419319085,1775158245449,-200.0,0.0001984,2]
[419319086,1775158245458,-183.74,0.00019844,2]
[419319087,1775158245467,-368.0,0.00019855,2]
[419319088,1775158245477,-703.0,0.00019855,2]
[419319089,1775158245487,-839.0,0.00019855,2]
[419319090,1775158245496,-151.0,0.00019855,2]
[419319091,1775158245506,-178.930567,0.00019855,2]
[419319092,1775158245515,-151.0,0.00019855,2]
[419319093,1775158245525,-2264.0,0.00019855,2]
[419319094,1775158245534,-736.0,0.00019855,2]
[419319095,1775158245543,-374.0,0.00019855,2]
[419319096,1775158245552,-500.0,0.00019863,2]
[419319097,1775158245561,-500.0,0.00019898,2]
[419319098,1775158245570,-1000.0,0.00019898,2]
[419319099,1775158245579,-9500.0,0.000199,7]
[419319100,1775158245589,-400.0,0.0001997,2]
[419319101,1775158245598,-500.0,0.00019973,2]
[419319102,1775158245608,-500.0,0.00019973,2]
[419319103,1775158245617,-500.0,0.00019973,2]
[419319104,1775158245626,-500.0,0.00019973,2]
[419319105,1775158245636,-500.0,0.00019973,2]
[419319106,1775158245645,-500.0,0.00019973,2]
[419319107,1775158245656,-151.0,0.00019973,2]
[419319108,1775158245665,-158.253096,0.00019973,2]
[419319109,1775158245674,-151.0,0.00019996,2]
[419319110,1775158245684,-500.0,0.00019999,2]
[419319111,1775158245694,-500.0,0.00019999,2]
[419319112,1775158245704,-500.0,0.00019999,2]
[419319113,1775158245713,-3429.0,0.0002,5]
[419319114,1775158245722,-250.0,0.0002,2]
[419319115,1775158245731,-203.46,0.0002,2]
[419319116,1775158245741,-1052.45870514,0.0002,2]
[419319117,1775158245750,-2884.08717519,0.0002,2]
[419319118,1775158245760,-13017.54892586,0.0002,2]
[419319119,1775158245769,-152.0,0.0002,2]
[419319120,1775158245778,-856.46690184,0.0002,2]
[419319121,1775158245787,-195.0,0.0002,2]
[419319122,1775158245797,-200.0,0.0002,2]
[419319123,1775158245806,-200.0,0.0002,2]
[419319124,1775158245815,-680.02646899,0.0002,2]
[419319125,1775158245825,-606.79798075,0.0002,2]
[419319126,1775158245835,-2000.0,0.0002,2]
[419319127,1775158245845,-238.26555071,0.0002,2]
[419319128,1775158245855,-33248.8450785,0.0002,2]
[419319129,1775158245864,-500.0,0.0002,2]
[419319130,1775158245874,-2714.53,0.0002,30]
[419319131,1775158245883,-150.0,0.0002,2]
[419319132,1775158245892,-292.47605773,0.0002,2]
[419319133,1775158245902,-151.0,0.0002,2]
[419319134,1775158245912,-151.0,0.0002,2]
[419319135,1775158245921,-151.0,0.0002,2]
[419319136,1775158245930,-151.0,0.0002,2]
[419319137,1775158245939,-200.0,0.0002,10]
[419319138,1775158245948,-165.90634,0.0002,2]
[419319139,1775158245957,-165.90635,0.0002,2]
[419319140,1775158245967,-192.11,0.0002,2]
[419319141,1775158245976,-200.0,0.0002,2]
[419319142,1775158245985,-151.0,0.0002,2]
[419319143,1775158245994,-150.0,0.0002,20]
[419319144,1775158246004,-1000.0,0.0002,7]
[419319145,1775158246014,-154.78244339,0.00020001,2]
[419319146,1775158246023,-2000.0,0.0002001,2]
[419319147,1775158246031,-2410.606781,0.0002002,2]
[419319148,1775158246041,-308.84564091,0.00020045,2]
[419319149,1775158246050,-2000.0,0.000201,2]
[419319150,1775158246060,-300.0,0.000201,10]
[419319151,1775158246070,-2000.0,0.0002014,2]
[419319152,1775158246079,-1115.0,0.00020164,2]
[419319153,1775158246088,-665.97142184,0.00020265,2]
[419319154,1775158246097,-582.86950942,0.00020446,2]
[419319155,1775158246107,-156.94,0.00020519,2]
[419319156,1775158246116,-500.0,0.00020521,2]
[419319157,1775158246125,-21693.66,0.00020548,2]
[419319158,1775158246134,-233.850552,0.00020634,7]
[419319159,1775158246144,-22828.79057862,0.000207,2]
[419319160,1775158246153,-161.0,0.0002077,2]
[419319161,1775158246162,-399.26736,0.00020774,7]
[419319162,1775158246171,-3382.0243901,0.000208,2]
[419319163,1775158246180,-2300.0,0.00020822,7]
[419319164,1775158246189,-3000.0,0.00020822,7]
[419319165,1775158246198,-368.0,0.00020855,2]
[419319166,1775158246208,-703.0,0.00020855,2]
[419319167,1775158246217,-839.0,0.00020855,2]
[419319168,1775158246226,-2264.0,0.00020855,2]
[419319169,1775158246235,-736.0,0.00020855,2]
[419319170,1775158246245,-374.0,0.00020855,2]
[419319171,1775158246255,-1720.4,0.00020921,2]
[419319172,1775158246264,-801.0,0.00020938,10]
[419319173,1775158246273,-2500.0,0.00020938,10]
[419319174,1775158246283,-50449.83236664,0.00020965,2]
[419319175,1775158246292,-500.0,0.00021,2]
[419319176,1775158246302,-10759.52389459,0.00021,2]
[419319182,1775158247071,-9240.47610541,0.00021,2]
[419319183,1775158247080,-1202.21778264,0.00021,2]
[419319184,1775158247090,-198.41876836,0.00021,2]
[419319185,1775158247102,-349.6326,0.00021,27]
[419319186,1775158247112,-350.0,0.00021038,4]
[419319187,1775158247123,-1115.0,0.00021225,2]
[419319188,1775158247132,-1600.0,0.00021275,2]
[419319189,1775158247142,-305.5253928,0.00021367,30]
[419319190,1775158247151,-6431.58,0.0002137,2]
[419319191,1775158247161,-156.94,0.00021411,2]
[419319192,1775158247170,-219.00096718,0.00021458,2]
[419319193,1775158247179,-2809.0,0.00021491,2]
[419319194,1775158247188,-1571.0,0.00021491,2]
[419319195,1775158247198,-500.0,0.00021499,2]
[419319196,1775158247207,-500.0,0.00021499,2]
[419319197,1775158247218,-500.0,0.00021499,2]
[419319198,1775158247228,-58002.46333753,0.000215,2]
[419319199,1775158247237,-223.86776951,0.000215,2]
[419319200,1775158247247,-1125.52024567,0.000215,2]
[419319201,1775158247256,-655.99,0.00021528,2]
[419319202,1775158247265,-159.0,0.00021577,3]
[419319203,1775158247275,-3375.81532785,0.00021645,2]
[419319204,1775158247284,-4024.0,0.00021664,2]
[419319205,1775158247293,-150.0,0.00021667,2]
[419319206,1775158247302,-3382.0243901,0.000218,2]
[419319207,1775158247312,-368.0,0.00021855,2]
[419319208,1775158247321,-703.0,0.00021855,2]
[419319209,1775158247330,-839.0,0.00021855,2]
[419319210,1775158247339,-2264.0,0.00021855,2]
[419319211,1775158247348,-736.0,0.00021855,2]
[419319212,1775158247357,-374.0,0.00021855,2]
[419319213,1775158247367,-205.68,0.00021875,2]
[419319214,1775158247376,-1000.0,0.00021918,2]
[419319215,1775158247386,-1000.0,0.00021918,2]
[419319216,1775158247395,-324.0,0.00021918,2]
[419319217,1775158247405,-5000.0,0.00021918,2]
[419319218,1775158247414,-3059.34,0.00021918,2]
[419319219,1775158247423,-188.291555,0.00021918,2]
[419319220,1775158247433,-188.291555,0.00021918,2]
[419319221,1775158247442,-188.291555,0.00021918,2]
[419319222,1775158247451,-188.291555,0.00021918,2]
[419319223,1775158247460,-151.0,0.00021918,2]
[419319224,1775158247470,-151.0,0.00021918,2]
[419319225,1775158247479,-1502.67288953,0.00021918,2]
[419319226,1775158247488,-3000.0,0.00021918,7]
[419319227,1775158247498,-151.0,0.00021918,2]
[419319228,1775158247507,-188.291555,0.00021918,2]
[419319229,1775158247516,-188.291555,0.00021918,2]
[419319230,1775158247526,-188.291555,0.00021918,2]
[419319231,1775158247535,-188.291555,0.00021918,2]
[419319232,1775158247544,-500.0,0.00021918,2]
[419319233,1775158247554,-500.0,0.00021918,2]
[419319234,1775158247563,-500.0,0.00021918,2]
[419319235,1775158247572,-219.04812323,0.00021918,2]
[419319236,1775158247582,-150.0,0.00021918,2]
[419319237,1775158247591,-349.0,0.00021924,2]
[419319238,1775158247600,-2000.0,0.00021971,2]
[419319239,1775158247609,-856.0,0.00021987,2]
[419319240,1775158247619,-295.23743266,0.00022,2]
[419319241,1775158247629,-10013.50976567,0.00022,2]
[419319242,1775158247638,-158.0,0.00022,5]
[419319243,1775158247647,-158.0,0.00022,4]
[419319244,1775158247657,-158.0,0.00022,3]
[419319245,1775158247666,-164.92,0.00022,2]
[419319246,1775158247675,-160.0,0.00022,2]
[419319247,1775158247684,-155.8,0.00022,30]
[419319248,1775158247694,-151.0,0.00022,2]
[419319249,1775158247703,-151.0,0.00022,2]
[419319250,1775158247712,-167.9911184,0.00022058,2]
[419319251,1775158247721,-1000.0,0.00022079,2]
[419319252,1775158247731,-498.4482586,0.000221,2]
[419319253,1775158247740,-414.1104,0.000221,32]
[419319254,1775158247748,-242.23509251,0.0002211,2]
[419319255,1775158247758,-587.08409678,0.0002213,2]
[419319256,1775158247768,-250.0,0.00022215,2]
[419319257,1775158247779,-50449.83236664,0.00022232,2]
[419319258,1775158247789,-637.5812707,0.00022233,2]
[419319259,1775158247799,-169.0,0.00022274,3]
[419319260,1775158247809,-185.74675493,0.00022283,2]
[419319261,1775158247820,-156.94,0.00022303,2]
[419319262,1775158247829,-152.51,0.00022309,2]
[419319263,1775158247839,-1115.0,0.00022342,2]
[419319264,1775158247848,-196.53241965,0.0002235,2]
[419319265,1775158247858,-219.00096718,0.00022386,2]
[419319266,1775158247868,-183.08117063,0.00022404,2]
[419319267,1775158247877,-1263.0,0.00022433,2]
[419319268,1775158247887,-1217.0,0.00022433,2]
[419319269,1775158247897,-925.0,0.00022433,2]
[419319270,1775158247907,-2469.0,0.00022433,2]
[419319271,1775158247916,-1046.0,0.00022433,2]
[419319272,1775158247926,-35797.20487811,0.000225,2]
[419319273,1775158247936,-746.12883451,0.00022616,2]
[419319274,1775158247946,-12113.33,0.0002274,2]
[419319275,1775158247955,-150.0,0.00022751,2]
[419319276,1775158247965,-350.0,0.00022763,2]
[419319277,1775158247976,-3382.0243901,0.000228,2]
[419319278,1775158247986,-368.0,0.00022855,2]
[419319279,1775158247995,-703.0,0.00022855,2]
[419319280,1775158248004,-839.0,0.00022855,2]
[419319281,1775158248013,-2264.0,0.00022855,2]
[419319282,1775158248022,-736.0,0.00022855,2]
[419319283,1775158248032,-374.0,0.00022855,2]
[419319284,1775158248042,-400.0,0.0002287,2]
[419319285,1775158248051,-3249.95,0.00022893,2]
[419319286,1775158248060,-150.0,0.00022973,2]
[419319287,1775158248069,-500.0,0.00022973,2]
[419319288,1775158248078,-500.0,0.00022999,2]
[419319289,1775158248087,-151.0,0.00022999,2]
[419319290,1775158248215,-151.0,0.00022999,2]
[419319291,1775158248225,-151.0,0.00022999,2]
[419319292,1775158248235,-150.0,0.00022999,2]
[419319293,1775158248244,-150.0,0.00022999,2]
[419319294,1775158248253,-150.0,0.00022999,2]
[419319295,1775158248262,-150.0,0.00022999,2]
[419319296,1775158248272,-150.0,0.00022999,2]
[419319297,1775158248283,-150.0,0.00022999,2]
[419319298,1775158248292,-150.0,0.00022999,2]
[419319299,1775158248302,-150.0,0.00022999,2]
[419319300,1775158248312,-150.0,0.00022999,2]
[419319301,1775158248322,-150.0,0.00022999,2]
[419319302,1775158248332,-150.0,0.00022999,2]
[419319303,1775158248342,-150.0,0.00022999,2]
[419319304,1775158248352,-150.0,0.00022999,2]
[419319305,1775158248362,-150.0,0.00022999,2]
[419319306,1775158248371,-150.0,0.00022999,2]
[419319307,1775158248380,-203.93416844,0.00022999,2]
[419319308,1775158248389,-116707.65362992,0.00023,2]
[419319309,1775158249555,-824.0,0.00023,2]
[419319310,1775158250447,-3076.59020252,0.00023,2]
[419319311,1775158251002,-4143.19384869,0.00023,2]
[419319312,1775158251015,-1037.32092717,0.00023,2]
[419319313,1775158251028,-881.45672485,0.00023,2]
[419319314,1775158251044,-36035.14752852,0.00023,2]
[419319315,1775158251058,-445.5,0.00023,2]
[419319316,1775158251130,-41748.74361248,0.00023,2]
[419319317,1775158251141,-11066.07179991,0.00023,2]
[419319331,1775159432170,-502.0,0.00013111,2]
[419319333,1775159432184,-250.0,0.00013167,2]
[419319334,1775159432205,-250.0,0.00013465,2]
[419319335,1775159432220,-160.65940773,0.00013699,2]
[419319336,1775159432235,-166.66,0.00013759,2]
[419319337,1775159432248,-156.95,0.00013988,2]
[419319338,1775159432263,-166.66,0.00014049,2]
[419319339,1775159432276,-1200.0,0.00014213,2]
[419319340,1775159432288,-151.0,0.00014214,2]
[419319341,1775159432301,-151.0,0.00014214,2]
[419319342,1775159432314,-500.0,0.00014221,2]
[419319343,1775159432328,-500.0,0.00014221,2]
[419319344,1775159432341,-500.0,0.00014221,2]
[419319345,1775159432354,-79524.70834173,0.00014222,2]
[419319346,1775159432471,-4807.25337321,0.00014222,2]
[419319347,1775159432507,-23471.7889067,0.00014222,2]
[419319348,1775159432522,-900.0,0.00014222,2]
[419319364,1775159438285,-301.76454383,0.00014222,2]
[419319365,1775159438540,-3487.1,0.00014222,2]
[419319366,1775159438595,-1794.92694484,0.00014222,2]
[419319367,1775159438606,-51807.58838252,0.00014222,2]
[419319418,1775159440906,-511.95657192,0.00014222,2]
[419319419,1775159442026,-2087.35561169,0.00014222,2]
[419319420,1775159442057,-127671.11392356,0.00014222,2]
[419319421,1775159442066,-2709.32269998,0.00014239,2]
[419319422,1775159442075,-611.94845348,0.00014239,2]
[419319423,1775159442084,-166.66,0.00014339,2]
[419319424,1775159442094,-300.0,0.00014422,2]
[419319425,1775159442103,-300.0,0.00014422,2]
[419319426,1775159442112,-300.0,0.00014422,2]
[419319427,1775159442121,-300.0,0.00014422,2]
[419319428,1775159442130,-300.0,0.00014422,2]
[419319429,1775159442140,-2500.0,0.00014422,2]
[419319430,1775159442149,-2500.0,0.00014422,2]
[419319431,1775159442158,-2500.0,0.00014422,2]
[419319432,1775159442167,-2500.0,0.00014422,2]
[419319433,1775159442176,-2500.0,0.00014422,2]
[419319434,1775159442186,-250.0,0.00014422,2]
[419319435,1775159442197,-1600.0,0.00014452,2]
[419319436,1775159442207,-218.0,0.00014557,2]
[419319437,1775159442216,-166.66,0.00014628,2]
[419319438,1775159442225,-200.0,0.00014658,2]
[419319439,1775159442235,-1500.0,0.0001477,2]
[419319440,1775159442244,-500.0,0.00014835,2]
[419319441,1775159442254,-166.66,0.00014918,2]
[419319442,1775159442263,-800.0,0.00015068,2]
[419319443,1775159442273,-166.66,0.00015208,2]
[419319444,1775159442282,-1000.0,0.00015383,2]
[419319445,1775159442292,-1680.0,0.00015634,2]
[419319446,1775159442301,-1000.0,0.00015882,2]